fUSD/lending_fUSD_20250301
["ID","MTS","AMOUNT","RATE_DAILY","PERIOD"]
[354941115,1740835853258,-604.06,0.00027671,2]
[354941116,1740835853267,-500.0,0.00027671,2]
[354941117,1740835853277,-500.0,0.00027671,2]
[354941118,1740835853287,-1201.61,0.00027671,2]
[354941119,1740835853296,-686.82,0.00027671,2]
[354941120,1740835853306,-500.0,0.00027671,2]
[354941121,1740835853317,-861.67,0.00027671,2]
[354941122,1740835853326,-500.0,0.00027671,2]
[354941123,1740835853336,-500.0,0.00027671,2]
[354941124,1740835853348,-500.0,0.00027671,2]
[354941125,1740835853357,-891.93,0.00027671,2]
[354941126,1740835853367,-533.31053904,0.00027671,2]
[354941127,1740835853377,-500.0,0.00027671,2]
[354941128,1740835853387,-500.0,0.00027671,2]
[354941129,1740835853396,-500.0,0.00027671,2]
[354941130,1740835853407,-522.42,0.00027671,2]
[354941131,1740835853417,-500.0,0.00027671,2]
[354941132,1740835853427,-545.89,0.00027671,2]
[354941133,1740835853437,-500.0,0.00027671,2]
[354941134,1740835853644,-776.04,0.00027671,2]
[354941135,1740835853654,-1214.15,0.00027671,2]
[354941136,1740835853664,-883.59,0.00027671,2]
[354941137,1740835853674,-539.76296829,0.00027671,2]
[354941138,1740835853684,-500.0,0.00027671,2]
[354941139,1740835853694,-899.28,0.00027671,2]
[354941140,1740835853704,-500.0,0.00027671,2]
[354941141,1740835853714,-500.0,0.00027671,2]
[354941142,1740835853723,-522.51036416,0.00027671,2]
[354941143,1740835853734,-741.18,0.00027671,2]
[354941144,1740835853749,-525.97468504,0.00027671,2]
[354941145,1740835853759,-823.54,0.00027671,2]
[354941146,1740835853769,-523.51479319,0.00027671,2]
[354941147,1740835853779,-500.0,0.00027671,2]
[354941148,1740835853789,-500.0,0.00027671,2]
[354941149,1740835853800,-500.0,0.00027671,2]
[354941150,1740835853811,-754.28,0.00027671,2]
[354941151,1740835853820,-688.29,0.00027671,2]
[354941152,1740835853830,-500.0,0.00027671,2]
[354941153,1740835853840,-900.84,0.00027671,2]
[354941154,1740835853850,-920.49,0.00027671,2]
[354941155,1740835853860,-500.0,0.00027671,2]
[354941156,1740835853869,-1857.36,0.00027671,2]
[354941157,1740835853881,-500.0,0.00027671,2]
[354941158,1740835853891,-710.58,0.00027671,2]
[354941159,1740835853900,-500.0,0.00027671,2]
[354941160,1740835853911,-531.19475275,0.00027671,2]
[354941161,1740835853922,-500.0,0.00027671,2]
[354941162,1740835853932,-500.0,0.00027671,2]
[354941163,1740835853942,-607.31,0.00027671,2]
[354941164,1740835853952,-500.0,0.00027671,2]
[354941165,1740835853962,-500.0,0.00027671,2]
[354941166,1740835853972,-865.23,0.00027671,2]
[354941167,1740835853982,-801.36,0.00027671,2]
[354941168,1740835853991,-500.0,0.00027671,2]
[354941169,1740835854001,-500.0,0.00027671,2]
[354941170,1740835854011,-1594.12,0.00027671,2]
[354941171,1740835854020,-500.0,0.00027671,2]
[354941172,1740835854031,-500.0,0.00027671,2]
[354941173,1740835854041,-500.0,0.00027671,2]
[354941174,1740835854051,-500.0,0.00027671,2]
[354941175,1740835854061,-932.11,0.00027671,2]
[354941176,1740835854070,-500.0,0.00027671,2]
[354941177,1740835854081,-1090.38,0.00027671,2]
[354941178,1740835854090,-500.0,0.00027671,2]
[354941179,1740835854100,-536.14884966,0.00027671,2]
[354941180,1740835854110,-500.0,0.00027671,2]
[354941181,1740835854120,-1008.51,0.00027671,2]
[354941182,1740835854129,-760.85,0.00027671,2]
[354941183,1740835854139,-500.0,0.00027671,2]
[354941184,1740835854149,-500.0,0.00027671,2]
[354941185,1740835854160,-1508.92,0.00027671,2]
[354941186,1740835854170,-500.0,0.00027671,2]
[354941187,1740835854180,-500.0,0.00027671,2]
[354941188,1740835854191,-1078.46,0.00027671,2]
[354941189,1740835854200,-500.0,0.00027671,2]
[354941190,1740835854210,-500.0,0.00027671,2]
[354941191,1740835854220,-1004.48,0.00027671,2]
[354941192,1740835854230,-500.0,0.00027671,2]
[354941193,1740835854240,-500.0,0.00027671,2]
[354941194,1740835854249,-500.0,0.00027671,2]
[354941195,1740835854259,-813.52,0.00027671,2]
[354941196,1740835854268,-1272.74,0.00027671,2]
[354941197,1740835854277,-965.69,0.00027671,2]
[354941198,1740835854290,-1613.54,0.00027671,2]
[354941199,1740835854299,-500.0,0.00027671,2]
[354941200,1740835854308,-1249.63,0.00027671,2]
[354941201,1740835854318,-500.0,0.00027671,2]
[354941202,1740835854327,-867.39,0.00027671,2]
[354941203,1740835854337,-500.0,0.00027671,2]
[354941204,1740835854347,-1090.18,0.00027671,2]
[354941205,1740835854357,-500.0,0.00027671,2]
[354941206,1740835854367,-500.0,0.00027671,2]
[354941207,1740835854377,-500.0,0.00027671,2]
[354941208,1740835854386,-3128.91,0.00027671,2]
[354941209,1740835854396,-812.15,0.00027671,2]
[354941210,1740835854406,-1810.55,0.00027671,2]
[354941211,1740835854415,-500.0,0.00027671,2]
[354941212,1740835854425,-524.38445938,0.00027671,2]
[354941213,1740835854435,-925.29,0.00027671,2]
[354941214,1740835854445,-500.0,0.00027671,2]
[354941215,1740835854457,-500.0,0.00027671,2]
[354941216,1740835854469,-1997.36,0.00027671,2]
[354941217,1740835854479,-999.13,0.00027671,2]
[354941218,1740835854488,-746.89,0.00027671,2]
[354941219,1740835854499,-783.62,0.00027671,2]
[354941220,1740835854508,-870.47,0.00027671,2]
[354941221,1740835854518,-500.0,0.00027671,2]
[354941222,1740835854528,-538.62225325,0.00027671,2]
[354941223,1740835854539,-703.71,0.00027671,2]
[354941224,1740835854549,-500.0,0.00027671,2]
[354941225,1740835854559,-956.67,0.00027671,2]
[354941226,1740835854569,-539.23,0.00027671,2]
[354941227,1740835854579,-378.35152797,0.00027671,2]
[354941228,1740835854588,-500.0,0.00027671,2]
[354941229,1740835854598,-829.89,0.00027671,2]
[354941230,1740835854609,-500.0,0.00027671,2]
[354941231,1740835854619,-500.0,0.00027671,2]
[354941232,1740835854629,-500.0,0.00027671,2]
[354941233,1740835854639,-500.0,0.00027671,2]
[354941234,1740835854649,-884.67,0.00027671,2]
[354941235,1740835854659,-1802.39,0.00027671,2]
[354941236,1740835854669,-1283.93,0.00027671,2]
[354941237,1740835854679,-1176.7,0.00027671,2]
[354941238,1740835854688,-500.0,0.00027671,2]
[354941239,1740835854699,-500.0,0.00027671,2]
[354941240,1740835854709,-500.0,0.00027671,2]
[354941241,1740835854718,-500.0,0.00027671,2]
[354941242,1740835854728,-705.48,0.00027671,2]
[354941243,1740835854738,-704.74,0.00027671,2]
[354941244,1740835854747,-1340.31,0.00027671,2]
[354941245,1740835854756,-500.0,0.00027671,2]
[354941246,1740835854766,-500.0,0.00027671,2]
[354941247,1740835854775,-500.0,0.00027671,2]
[354941248,1740835854786,-993.5,0.00027671,2]
[354941249,1740835854800,-500.0,0.00027671,2]
[354941250,1740835854810,-500.0,0.00027671,2]
[354941251,1740835854820,-1945.07,0.00027671,2]
[354941252,1740835854829,-500.0,0.00027671,2]
[354941253,1740835854840,-253.65639748,0.00027671,2]
[354941254,1740835854849,-500.0,0.00027671,2]
[354941255,1740835854858,-500.0,0.00027671,2]
[354941256,1740835854867,-616.79,0.00027671,2]
[354941257,1740835854880,-781.95,0.00027671,2]
[354941258,1740835854891,-1086.8,0.00027671,2]
[354941259,1740835854900,-1604.77,0.00027671,2]
[354941260,1740835854909,-500.0,0.00027671,2]
[354941261,1740835854919,-500.0,0.00027671,2]
[354941262,1740835854929,-811.07,0.00027671,2]
[354941263,1740835854939,-500.0,0.00027671,2]
[354941264,1740835854949,-500.0,0.00027671,2]
[354941265,1740835854958,-500.0,0.00027671,2]
[354941266,1740835854969,-910.54,0.00027671,2]
[354941267,1740835854978,-865.09,0.00027671,2]
[354941268,1740835854989,-1080.34,0.00027671,2]
[354941269,1740835854999,-872.84,0.00027671,2]
[354941270,1740835855008,-500.0,0.00027671,2]
[354941271,1740835855018,-500.0,0.00027671,2]
[354941272,1740835855027,-1122.73,0.00027671,2]
[354941273,1740835855038,-500.0,0.00027671,2]
[354941274,1740835855048,-500.0,0.00027671,2]
[354941275,1740835855058,-500.0,0.00027671,2]
[354941276,1740835855068,-226.19921783,0.00027671,2]
[354941277,1740835855078,-500.0,0.00027671,2]
[354941278,1740835855088,-1631.66,0.00027671,2]
[354941279,1740835855098,-500.0,0.00027671,2]
[354941280,1740835855107,-664.35,0.00027671,2]
[354941281,1740835855117,-1180.81,0.00027671,2]
[354941282,1740835855128,-500.0,0.00027671,2]
[354941283,1740835855138,-1255.52,0.00027671,2]
[354941284,1740835855149,-1019.76,0.00027671,2]
[354941285,1740835855159,-1482.95,0.00027671,2]
[354941286,1740835855169,-152.038542,0.00027671,5]
[354941287,1740835855178,-500.0,0.00027671,2]
[354941288,1740835855189,-521.84258859,0.00027671,2]
[354941289,1740835855200,-1046.42,0.00027671,2]
[354941290,1740835855210,-995.66,0.00027671,2]
[354941291,1740835855220,-500.0,0.00027671,2]
[354941292,1740835855230,-911.0,0.00027671,2]
[354941293,1740835855239,-1132.4,0.00027671,2]
[354941294,1740835855249,-500.0,0.00027671,2]
[354941295,1740835855259,-500.0,0.00027671,2]
[354941296,1740835855268,-500.0,0.00027671,2]
[354941297,1740835855278,-500.0,0.00027671,2]
[354941298,1740835855291,-566.02,0.00027671,2]
[354941299,1740835855300,-1048.33,0.00027671,2]
[354941300,1740835855310,-664.86,0.00027671,2]
[354941301,1740835855319,-880.25,0.00027671,2]
[354941302,1740835855329,-500.0,0.00027671,2]
[354941303,1740835855338,-1684.64,0.00027671,2]
[354941304,1740835855347,-1312.22,0.00027671,2]
[354941305,1740835855357,-500.0,0.00027671,2]
[354941306,1740835855367,-863.97,0.00027671,2]
[354941307,1740835855377,-500.0,0.00027671,2]
[354941308,1740835855387,-523.39769185,0.00027671,2]
[354941309,1740835855396,-767.46,0.00027671,2]
[354941310,1740835855407,-829.16,0.00027671,2]
[354941311,1740835855416,-500.0,0.00027671,2]
[354941312,1740835855426,-551.19,0.00027671,2]
[354941313,1740835855436,-500.0,0.00027671,2]
[354941314,1740835855445,-500.0,0.00027671,2]
[354941315,1740835855455,-500.0,0.00027671,2]
[354941316,1740835855464,-500.0,0.00027671,2]
[354941317,1740835855474,-500.0,0.00027671,2]
[354941318,1740835855484,-1702.86,0.00027671,2]
[354941319,1740835855494,-500.0,0.00027671,2]
[354941320,1740835855504,-626.46,0.00027671,2]
[354941321,1740835855513,-681.4,0.00027671,2]
[354941322,1740835855523,-500.0,0.00027671,2]
[354941323,1740835855534,-500.0,0.00027671,2]
[354941324,1740835855544,-500.0,0.00027671,2]
[354941325,1740835855555,-500.0,0.00027671,2]
[354941326,1740835855565,-500.0,0.00027671,2]
[354941327,1740835855575,-1847.22,0.00027671,2]
[354941328,1740835855585,-823.59,0.00027671,2]
[354941329,1740835855595,-500.0,0.00027671,2]
[354941330,1740835855604,-500.0,0.00027671,2]
[354941331,1740835855614,-500.0,0.00027671,2]
[354941332,1740835855624,-728.47,0.00027671,2]
[354941333,1740835855634,-500.0,0.00027671,2]
[354941334,1740835855643,-828.37,0.00027671,2]
[354941335,1740835855655,-850.27,0.00027671,2]
[354941336,1740835855665,-840.88,0.00027671,2]
[354941337,1740835855676,-893.93,0.00027671,2]
[354941338,1740835855685,-1116.91,0.00027671,2]
[354941339,1740835855695,-1967.29,0.00027671,2]
[354941340,1740835855705,-649.10028313,0.00027671,2]
[354941341,1740835855715,-753.3,0.00027671,2]
[354941342,1740835855724,-500.0,0.00027671,2]
[354941343,1740835855734,-1009.13,0.00027671,2]
[354941344,1740835855743,-500.0,0.00027671,2]
[354941345,1740835855753,-500.0,0.00027671,2]
[354941346,1740835855762,-500.0,0.00027671,2]
[354941347,1740835855772,-543.87,0.00027671,2]
[354941348,1740835855783,-1163.01,0.00027671,2]
[354941349,1740835855793,-1334.7,0.00027671,2]
[354941350,1740835855807,-500.0,0.00027671,2]
[354941351,1740835855817,-530.11,0.00027671,2]
[354941352,1740835855827,-1168.2,0.00027671,2]
[354941353,1740835855837,-500.0,0.00027671,2]
[354941354,1740835855846,-1361.35,0.00027671,2]
[354941355,1740835855856,-500.0,0.00027671,2]
[354941356,1740835855865,-500.0,0.00027671,2]
[354941357,1740835855876,-1231.37,0.00027671,2]
[354941358,1740835855886,-500.0,0.00027671,2]
[354941359,1740835855895,-1726.78,0.00027671,2]
[354941360,1740835855905,-1967.15,0.00027671,2]
[354941361,1740835855914,-1049.06,0.00027671,2]
[354941362,1740835855924,-827.01,0.00027671,2]
[354941363,1740835855934,-908.49,0.00027671,2]
[354941364,1740835855943,-1029.04,0.00027671,2]
[354941365,1740835855953,-1856.5,0.00027671,2]
[354941366,1740835855963,-756.08,0.00027671,2]
[354941367,1740835855972,-1158.67,0.00027671,2]
[354941368,1740835855982,-500.0,0.00027671,2]
[354941369,1740835855991,-150.03346719,0.00027671,2]
[354941370,1740835856000,-500.0,0.00027671,2]
[354941371,1740835856010,-500.0,0.00027671,2]
[354941372,1740835856020,-500.0,0.00027671,2]
[354941373,1740835856029,-1457.54,0.00027671,2]
[354941374,1740835856040,-500.0,0.00027671,2]
[354941375,1740835856050,-500.0,0.00027671,2]
[354941376,1740835856059,-734.34,0.00027671,2]
[354941377,1740835856069,-500.0,0.00027671,2]
[354941378,1740835856079,-742.62,0.00027671,2]
[354941379,1740835856088,-500.0,0.00027671,2]
[354941380,1740835856098,-500.0,0.00027671,2]
[354941381,1740835856107,-919.73,0.00027671,2]
[354941382,1740835856117,-500.0,0.00027671,2]
[354941383,1740835856127,-530.17586944,0.00027671,2]
[354941384,1740835856136,-1588.94,0.00027671,2]
[354941385,1740835856146,-1157.1,0.00027671,2]
[354941386,1740835856156,-1942.12,0.00027671,2]
[354941387,1740835856165,-612.99,0.00027671,2]
[354941388,1740835856175,-1218.65,0.00027671,2]
[354941389,1740835856184,-1275.94,0.00027671,2]
[354941390,1740835856194,-500.0,0.00027671,2]
[354941391,1740835856203,-740.43,0.00027671,2]
[354941392,1740835856214,-541.31,0.00027671,2]
[354941393,1740835856224,-500.0,0.00027671,2]
[354941394,1740835856234,-500.0,0.00027671,2]
[354941395,1740835856244,-884.37,0.00027671,2]
[354941396,1740835856253,-1327.5,0.00027671,2]
[354941397,1740835856263,-1317.49,0.00027671,2]
[354941398,1740835856273,-1446.89,0.00027671,2]
[354941399,1740835856283,-500.0,0.00027671,2]
[354941400,1740835856293,-642.57,0.00027671,2]
[354941401,1740835856303,-1619.02,0.00027671,2]
[354941402,1740835856312,-1087.09,0.00027671,2]
[354941403,1740835856322,-500.0,0.00027671,2]
[354941404,1740835856331,-1468.28,0.00027671,2]
[354941405,1740835856341,-771.55,0.00027671,2]
[354941406,1740835856351,-1239.1,0.00027671,2]
[354941407,1740835856361,-668.47,0.00027671,2]
[354941408,1740835856371,-500.0,0.00027671,2]
[354941409,1740835856380,-3456.97,0.00027671,2]
[354941410,1740835856390,-794.14,0.00027671,2]
[354941411,1740835856399,-500.0,0.00027671,2]
[354941412,1740835856409,-2067.19,0.00027671,2]
[354941413,1740835856418,-626.54,0.00027671,2]
[354941414,1740835856428,-998.89,0.00027671,2]
[354941415,1740835856438,-733.67,0.00027671,2]
[354941416,1740835856447,-962.65,0.00027671,2]
[354941417,1740835856459,-1541.7,0.00027671,2]
[354941418,1740835856469,-12030.21,0.00027671,2]
[354941419,1740835856479,-3189.83,0.00027671,2]
[354941420,1740835856488,-500.0,0.00027671,2]
[354941421,1740835856498,-500.0,0.00027671,2]
[354941422,1740835856507,-1178.58,0.00027671,2]
[354941423,1740835856517,-1335.4,0.00027671,2]
[354941424,1740835856526,-1318.55,0.00027671,2]
[354941425,1740835856536,-500.0,0.00027671,2]
[354941426,1740835856546,-500.0,0.00027671,2]
[354941427,1740835856555,-617.14520897,0.00027671,2]
[354941428,1740835856565,-500.0,0.00027671,2]
[354941429,1740835856574,-520.9789099,0.00027671,2]
[354941430,1740835856584,-500.0,0.00027671,2]
[354941431,1740835856593,-976.27,0.00027671,2]
[354941432,1740835856603,-602.18,0.00027671,2]
[354941433,1740835856613,-1396.44,0.00027671,2]
[354941434,1740835856623,-1426.77,0.00027671,2]
[354941435,1740835856632,-500.0,0.00027671,2]
[354941436,1740835856642,-4790.14,0.00027671,2]
[354941437,1740835856651,-1210.57,0.00027671,2]
[354941438,1740835856661,-1143.57,0.00027671,2]
[354941439,1740835856860,-1913.07,0.00027671,2]
[354941440,1740835856871,-1002.55,0.00027671,2]
[354941441,1740835856883,-500.0,0.00027671,2]
[354941442,1740835856894,-1404.81,0.00027671,2]
[354941443,1740835856904,-731.36,0.00027671,2]
[354941444,1740835856913,-860.67,0.00027671,2]
[354941445,1740835856923,-908.71,0.00027671,2]
[354941446,1740835856933,-758.64,0.00027671,2]
[354941447,1740835856942,-500.0,0.00027671,2]
[354941448,1740835856952,-556.58,0.00027671,2]
[354941449,1740835856962,-1032.32,0.00027671,2]
[354941450,1740835856972,-500.0,0.00027671,2]
[354941451,1740835856982,-1650.5,0.00027671,2]
[354941452,1740835856993,-1242.21,0.00027671,2]
[354941453,1740835857003,-1994.51,0.00027671,2]
[354941454,1740835857012,-731.9,0.00027671,2]
[354941455,1740835857022,-1054.5,0.00027671,2]
[354941456,1740835857032,-500.0,0.00027671,2]
[354941457,1740835857042,-530.62082845,0.00027671,2]
[354941458,1740835857052,-500.0,0.00027671,2]
[354941459,1740835857062,-500.0,0.00027671,2]
[354941460,1740835857072,-751.07,0.00027671,2]
[354941461,1740835857082,-8083.94,0.00027671,2]
[354941462,1740835857092,-1066.25,0.00027671,2]
[354941463,1740835857102,-972.59,0.00027671,2]
[354941464,1740835857111,-500.0,0.00027671,2]
[354941465,1740835857120,-1417.48,0.00027671,2]
[354941466,1740835857130,-1263.52,0.00027671,2]
[354941467,1740835857140,-4114.88,0.00027671,2]
[354941468,1740835857150,-500.0,0.00027671,2]
[354941469,1740835857160,-1786.51,0.00027671,2]
[354941470,1740835857170,-1910.05,0.00027671,2]
[354941471,1740835857179,-766.76,0.00027671,2]
[354941472,1740835857189,-2181.94,0.00027671,2]
[354941473,1740835857199,-500.0,0.00027671,2]
[354941474,1740835857208,-500.0,0.00027671,2]
[354941475,1740835857218,-500.0,0.00027671,2]
[354941476,1740835857229,-500.0,0.00027671,2]
[354941477,1740835857238,-2600.18,0.00027671,2]
[354941478,1740835857248,-1239.14,0.00027671,2]
[354941479,1740835857259,-2104.69,0.00027671,2]
[354941480,1740835857269,-2503.92,0.00027671,2]
[354941481,1740835857279,-892.22,0.00027671,2]
[354941482,1740835857289,-629.5,0.00027671,2]
[354941483,1740835857299,-722.79,0.00027671,2]
[354941484,1740835857309,-1056.33,0.00027671,2]
[354941485,1740835857319,-500.0,0.00027671,2]
[354941486,1740835857328,-500.0,0.00027671,2]
[354941487,1740835857338,-2057.12,0.00027671,2]
[354941488,1740835857348,-760.14,0.00027671,2]
[354941489,1740835857357,-500.0,0.00027671,2]
[354941490,1740835857367,-500.0,0.00027671,2]
[354941491,1740835857376,-2429.61,0.00027671,2]
[354941492,1740835857386,-500.0,0.00027671,2]
[354941493,1740835857396,-12704.44,0.00027671,2]
[354941494,1740835857406,-3131.49,0.00027671,2]
[354941495,1740835857415,-1648.72,0.00027671,2]
[354941496,1740835857425,-500.0,0.00027671,2]
[354941497,1740835857435,-777.52,0.00027671,2]
[354941498,1740835857444,-1133.91,0.00027671,2]
[354941499,1740835857453,-1492.68,0.00027671,2]
[354941500,1740835857463,-500.0,0.00027671,2]
[354941501,1740835857472,-2486.62,0.00027671,2]
[354941502,1740835857483,-500.0,0.00027671,2]
[354941503,1740835857492,-1047.31,0.00027671,2]
[354941504,1740835857502,-500.0,0.00027671,2]
[354941505,1740835857511,-500.0,0.00027671,2]
[354941506,1740835857521,-500.0,0.00027671,2]
[354941507,1740835857531,-2042.13,0.00027671,2]
[354941508,1740835857541,-2175.24,0.00027671,2]
[354941509,1740835857551,-500.0,0.00027671,2]
[354941510,1740835857560,-500.0,0.00027671,2]
[354941511,1740835857570,-2594.36,0.00027671,2]
[354941512,1740835857580,-1826.56,0.00027671,2]
[354941513,1740835857591,-2448.62,0.00027671,2]
[354941514,1740835857601,-500.0,0.00027671,2]
[354941515,1740835857613,-358.57786689,0.00027671,2]
[354941516,1740835857624,-2686.82,0.00027671,2]
[354941517,1740835857633,-573.68400272,0.00027671,2]
[354941518,1740835857643,-859.69,0.00027671,2]
[354941519,1740835857653,-632.29,0.00027671,2]
[354941520,1740835857664,-774.55,0.00027671,2]
[354941521,1740835857675,-500.0,0.00027671,2]
[354941522,1740835857685,-500.0,0.00027671,2]
[354941523,1740835857694,-1836.28,0.00027671,2]
[354941524,1740835857705,-703.98,0.00027671,2]
[354941525,1740835857715,-2521.1,0.00027671,2]
[354941526,1740835857724,-2534.49,0.00027671,2]
[354941527,1740835857734,-2114.45,0.00027671,2]
[354941528,1740835857744,-5368.6,0.00027671,2]
[354941529,1740835857754,-547.40500137,0.00027671,2]
[354941530,1740835857764,-1335.24,0.00027671,2]
[354941531,1740835857774,-500.0,0.00027671,2]
[354941532,1740835857784,-1255.56,0.00027671,2]
[354941533,1740835857794,-1426.72,0.00027671,2]
[354941534,1740835857807,-39436.58,0.00027671,2]
[354941535,1740835857817,-500.0,0.00027671,2]
[354941536,1740835857827,-500.0,0.00027671,2]
[354941537,1740835857836,-500.0,0.00027671,2]
[354941538,1740835857847,-500.0,0.00027671,2]
[354941539,1740835857856,-1279.02,0.00027671,2]
[354941540,1740835857866,-500.0,0.00027671,2]
[354941541,1740835857878,-1556.35,0.00027671,2]
[354941542,1740835857887,-652.0,0.00027671,2]
[354941543,1740835857897,-844.9,0.00027671,2]
[354941544,1740835857907,-2791.57,0.00027671,2]
[354941545,1740835857916,-1454.59,0.00027671,2]
[354941546,1740835857926,-500.0,0.00027671,2]
[354941547,1740835857935,-500.0,0.00027671,2]
[354941548,1740835857945,-1628.03,0.00027671,2]
[354941549,1740835857955,-500.0,0.00027671,2]
[354941550,1740835857965,-150.58457262,0.00027671,2]
[354941551,1740835857974,-500.0,0.00027671,2]
[354941552,1740835857984,-500.0,0.00027671,60]
[354941553,1740835857994,-756.64,0.00027671,2]
[354941554,1740835858003,-574.17,0.00027671,2]
[354941555,1740835858013,-500.0,0.00027671,2]
[354941556,1740835858022,-545.98,0.00027671,2]
[354941557,1740835858032,-871.94,0.00027671,2]
[354941558,1740835858043,-842.86,0.00027671,2]
[354941559,1740835858054,-1267.95,0.00027671,2]
[354941560,1740835858064,-651.62,0.00027671,2]
[354941561,1740835858074,-802.19,0.00027671,2]
[354941562,1740835858083,-2670.58,0.00027671,2]
[354941563,1740835858093,-1778.48,0.00027671,2]
[354941564,1740835858103,-2454.41,0.00027671,2]
[354941565,1740835858113,-1117.96,0.00027671,2]
[354941566,1740835858125,-1149.85,0.00027671,2]
[354941567,1740835858135,-911.68,0.00027671,2]
[354941568,1740835858145,-1511.75,0.00027671,2]
[354941569,1740835858155,-500.0,0.00027671,2]
[354941570,1740835858165,-500.0,0.00027671,2]
[354941571,1740835858175,-2560.74,0.00027671,2]
[354941572,1740835858185,-500.0,0.00027671,2]
[354941573,1740835858195,-959.77,0.00027671,2]
[354941574,1740835858205,-621.04,0.00027671,2]
[354941575,1740835858215,-779.39,0.00027671,2]
[354941576,1740835858225,-641.8,0.00027671,2]
[354941577,1740835858234,-2101.7,0.00027671,2]
[354941578,1740835858244,-500.0,0.00027671,2]
[354941579,1740835858254,-500.0,0.00027671,2]
[354941580,1740835858264,-1177.63,0.00027671,2]
[354941581,1740835858274,-804.86,0.00027671,2]
[354941582,1740835858285,-1746.98,0.00027671,2]
[354941583,1740835858295,-500.0,0.00027671,2]
[354941584,1740835858305,-1447.84,0.00027671,2]
[354941585,1740835858315,-529.79921085,0.00027671,2]
[354941586,1740835858325,-526.11,0.00027671,120]
[354941587,1740835858335,-3598.93,0.00027671,2]
[354941588,1740835858345,-678.24,0.00027671,2]
[354941589,1740835858355,-2745.79,0.00027671,2]
[354941590,1740835858364,-6600.17,0.00027671,2]
[354941591,1740835858374,-709.4,0.00027671,2]
[354941592,1740835858383,-500.0,0.00027671,2]
[354941593,1740835858393,-2143.44,0.00027671,2]
[354941594,1740835858403,-1324.83,0.00027671,2]
[354941595,1740835858413,-1372.56,0.00027671,2]
[354941596,1740835858423,-500.0,0.00027671,2]
[354941597,1740835858432,-681.22,0.00027671,2]
[354941598,1740835858442,-1778.56,0.00027671,2]
[354941599,1740835858453,-1807.59,0.00027671,2]
[354941600,1740835858462,-27338.86,0.00027671,2]
[354941601,1740835858472,-574.6,0.00027671,2]
[354941602,1740835858482,-1404.1,0.00027671,2]
[354941603,1740835858492,-1579.41,0.00027671,2]
[354941604,1740835858502,-500.0,0.00027671,2]
[354941605,1740835858512,-23579.96,0.00027671,2]
[354941606,1740835858522,-745.66,0.00027671,2]
[354941607,1740835858532,-530.99,0.00027671,2]
[354941608,1740835858544,-1922.06,0.00027671,2]
[354941609,1740835858555,-1794.32,0.00027671,2]
[354941610,1740835858567,-1078.19,0.00027671,2]
[354941611,1740835858578,-560.48,0.00027671,2]
[354941612,1740835858588,-346.55368032,0.00027671,2]
[354941613,1740835858599,-500.0,0.00027671,2]
[354941614,1740835858609,-1314.32,0.00027671,2]